bitfinex-derivatives/quotes_SOLF0:USTF0_20250331
["timestamp","ask_amount","ask_price","bid_price","bid_amount"]
[1743419503951,9.45866925,123.87,123.83,98.92744878]
[1743419504251,8.0746,123.86,123.85,0.05678465]
[1743419504953,8.0738,123.87,123.85,0.05678465]
[1743419506451,9.45866925,123.87,123.85,0.05678465]
[1743419506849,17.53266925,123.87,123.85,0.05678465]
[1743419507048,9.45866925,123.86,123.85,0.05678465]
[1743419507449,17.53286925,123.86,123.85,0.05678465]
[1743419508253,21.76736925,123.87,123.85,0.05678465]
[1743419508450,10.2401,123.87,123.85,0.05678465]
[1743419508855,2.1662,123.87,123.85,8.13158465]
[1743419509056,2.1662,123.87,123.85,0.05678465]
[1743419509759,10.2399,123.87,123.85,0.05678465]
[1743419510256,2.1662,123.87,123.85,8.13138465]
[1743419510456,2.1662,123.87,123.85,0.05678465]
[1743419510855,10.2399,123.87,123.85,0.05678465]
[1743419512460,8.0737,123.87,123.85,8.13138465]
[1743419512652,8.0737,123.87,123.85,0.05678465]
[1743419513359,8.0737,123.87,123.85,8.13148465]
[1743419513755,8.0737,123.87,123.85,0.05678465]
[1743419513955,17.53236925,123.87,123.85,0.05678465]
[1743419514557,9.5129936,123.88,123.85,0.05678465]
[1743419514857,9.5129936,123.88,123.85,8.13138465]
[1743419515054,17.5861936,123.88,123.85,8.13138465]
[1743419515353,9.45866925,123.86,123.85,0.05678465]
[1743419515557,17.53286925,123.86,123.85,0.05678465]
[1743419516554,9.45866925,123.86,123.85,0.05678465]
[1743419517155,8.0742,123.86,123.85,0.05678465]
[1743419520063,17.53266925,123.87,123.85,0.05678465]
[1743419520668,8.0742,123.86,123.85,0.05678465]
[1743419520963,9.45866925,123.87,123.85,8.13148465]
[1743419521163,17.53256925,123.87,123.85,8.13148465]
[1743419521364,8.0739,123.87,123.85,8.13148465]
[1743419522270,8.0742,123.86,123.85,0.05678465]
[1743419523368,17.53286925,123.86,123.85,0.05678465]
[1743419525069,40.07866925,123.86,123.76,290.56]
[1743419525271,9.45866925,123.82,123.77,40.07866925]
[1743419525663,8.0778,123.81,123.77,40.07866925]
[1743419525864,9.45866925,123.82,123.77,40.07866925]
[1743419526069,9.45866925,123.83,123.78,9.45866925]
[1743419526391,0.05594436,123.81,123.78,9.51595699]
[1743419526787,0.05594436,123.81,123.8,8.0781]
[1743419529383,0.05594436,123.81,123.8,17.53676925]
[1743419530374,0.05594436,123.81,123.8,8.0781]
[1743419532061,0.05594436,123.81,123.79,79.53696925]
[1743419533163,0.05594436,123.81,123.8,8.0781]
[1743419539171,0.05594436,123.81,123.8,17.53676925]
[1743419541972,8.0739,123.87,123.85,8.0746]
[1743419542372,2.148,123.88,123.83,9.45866925]
[1743419542571,11.60666925,123.88,123.83,9.45866925]
[1743419542878,13.63556925,123.91,123.86,9.45866925]
[1743419543183,8.12398336,123.9,123.88,8.0726]
[1743419544477,8.12398336,123.9,123.87,8.12866113]
[1743419545177,17.58265261,123.9,123.87,8.12866113]
[1743419545377,17.58265261,123.9,123.88,8.0729]
[1743419545773,17.58265261,123.9,123.87,0.05526113]
[1743419546177,17.58265261,123.9,123.87,8.12846113]
[1743419547473,9.45866925,123.89,123.87,0.05526113]
[1743419548380,9.45866925,123.88,123.81,9.45866925]
[1743419548684,9.45866925,123.85,123.8,40.05866925]
[1743419549581,0.05106269,123.84,123.81,8.13517097]
[1743419550178,8.12696269,123.84,123.81,8.13517097]
[1743419552181,8.0763,123.83,123.81,8.13517097]
[1743419552383,0.05106269,123.84,123.81,8.13517097]
[1743419552883,8.12696269,123.84,123.81,8.13517097]
[1743419554282,8.12696269,123.84,123.82,8.0768]
[1743419554979,0.05106269,123.84,123.83,8.0762]
[1743419556483,0.05106269,123.84,123.82,17.53516925]
[1743419556781,0.05106269,123.84,123.82,9.45866925]
[1743419557783,0.05106269,123.84,123.83,8.0762]
[1743419557984,0.05106269,123.84,123.82,9.45866925]
[1743419558382,0.05106269,123.84,123.82,17.53526925]
[1743419558981,0.05106269,123.84,123.81,8.13527097]
[1743419559174,0.05106269,123.84,123.81,17.59394022]
[1743419559576,8.0762,123.83,123.81,17.59394022]
[1743419559783,8.0762,123.83,123.81,8.13527097]
[1743419560083,8.12696269,123.84,123.81,8.13527097]
[1743419560279,8.12696269,123.84,123.81,9.51664022]
[1743419561286,8.12696269,123.84,123.81,17.59374022]
[1743419562487,9.45866925,123.82,123.81,0.05797097]
[1743419562783,17.53546925,123.82,123.81,0.05797097]
[1743419566478,19.52836925,123.83,123.81,0.05797097]
[1743419566683,40.6497,123.83,123.81,0.05797097]
[1743419566988,0.05106269,123.84,123.82,9.45866925]
[1743419567386,0.05106269,123.84,123.83,8.0762]
[1743419567688,0.05106269,123.84,123.82,9.45866925]
[1743419568289,0.05106269,123.84,123.82,17.53496925]
[1743419568484,0.05106269,123.84,123.82,9.45866925]
[1743419569294,0.05106269,123.84,123.83,8.0762]
[1743419570091,2.0371,123.89,123.86,8.0739]
[1743419570780,10.1098,123.89,123.86,8.0739]
[1743419571386,10.16733948,123.89,123.86,8.12893938]
[1743419573387,2.09463948,123.89,123.87,8.0736]
[1743419573592,0.05753948,123.89,123.87,8.0736]
[1743419573792,0.05753948,123.89,123.86,30.63503938]
[1743419573991,0.05753948,123.89,123.87,8.0733]
[1743419574500,0.05753948,123.89,123.87,8.0736]
[1743419577690,8.12993948,123.89,123.86,38.70903938]
[1743419578599,8.12993948,123.89,123.87,8.0735]
[1743419578801,0.05753948,123.89,123.87,8.0735]
[1743419581300,0.05753948,123.89,123.88,8.0729]
[1743419581601,12.61482704,123.99,123.96,8.0677]
[1743419581805,11.21012857,123.99,123.95,30.56]
[1743419582302,11.21012857,123.99,123.96,14.78587143]
[1743419582697,11.21012857,123.99,123.96,0.05594637]
[1743419582698,11.26711101,123.99,123.96,0.05594637]
[1743419583303,11.26711101,123.99,123.97,8.067]
[1743419584005,0.05698244,123.99,123.97,8.067]
[1743419584701,0.05698244,123.99,123.97,70.067]
[1743419587005,0.05698244,123.99,123.96,8.12334637]
[1743419587806,0.05698244,123.99,123.97,8.067]
[1743419589610,0.05698244,123.99,123.96,0.05594637]
[1743419590008,0.05698244,123.99,123.97,62.0]
[1743419590209,0.05698244,123.99,123.96,0.05594637]
[1743419591408,0.05698244,123.99,123.98,8.0664]
[1743419591810,0.05698244,123.99,123.96,0.05594637]
[1743419592011,0.05698244,123.99,123.97,8.0666]
[1743419592213,0.05698244,123.99,123.96,0.05594637]
[1743419592605,0.05698244,123.99,123.97,8.0669]
[1743419594412,0.05698244,123.99,123.96,8.12334637]
[1743419594616,0.05698244,123.99,123.96,0.05594637]
[1743419595508,0.05698244,123.99,123.97,8.067]
[1743419598416,8.12288244,123.99,123.96,17.56422464]
[1743419598617,9.49786071,123.99,123.96,0.05594637]
[1743419599012,17.56416071,123.99,123.96,0.05594637]
[1743419599613,0.05698244,123.99,123.96,9.49682464]
[1743419600118,8.12298244,123.99,123.96,17.56422464]
[1743419600817,8.12298244,123.99,123.97,8.0669]
[1743419601017,0.05698244,123.99,123.97,8.0669]
[1743419601411,8.12278244,123.99,123.97,8.0669]
[1743419601611,8.12278244,123.99,123.96,17.56412464]
[1743419602021,0.05698244,123.99,123.97,9.44087827]
[1743419602518,0.05698244,123.99,123.97,17.50767827]
[1743419604616,0.05698244,123.99,123.97,9.44087827]
[1743419605022,8.12278244,123.99,123.97,9.44087827]
[1743419606820,8.12278244,123.99,123.97,17.50787827]
[1743419607022,8.12278244,123.99,123.97,9.44087827]
[1743419607521,8.12278244,123.99,123.96,0.05594637]
[1743419607522,8.0664,123.98,123.96,9.49682464]
[1743419607821,8.0664,123.98,123.96,0.05594637]
[1743419610121,9.49786071,123.99,123.96,0.05594637]
[1743419610321,0.05698244,123.99,123.96,0.05594637]
[1743419610523,8.0667,123.98,123.96,0.05594637]
[1743419611227,8.0667,123.98,123.96,9.49682464]
[1743419615426,8.0671,123.97,123.96,9.49682464]
[1743419616026,8.0667,123.98,123.96,9.49682464]
[1743419618531,8.0667,123.98,123.96,0.05594637]
[1743419622627,9.44087827,123.97,123.92,9.44087827]
[1743419622829,9.44087827,123.93,123.89,9.44087827]
[1743419623129,8.0706,123.92,123.88,111.2670578]
[1743419623633,9.44087827,123.92,123.88,101.0379578]
[1743419623833,9.49407682,123.91,123.89,0.05271824]
[1743419624423,8.0721,123.9,123.89,0.05271824]
[1743419625626,8.0721,123.9,123.89,62.05271824]
[1743419627429,17.56537682,123.91,123.89,62.05271824]
[1743419627827,8.12449855,123.91,123.89,62.05271824]
[1743419628535,0.05319855,123.91,123.89,62.05271824]
[1743419629128,0.05319855,123.91,123.89,70.12441824]
[1743419629836,0.05319855,123.91,123.89,62.05271824]
[1743419630540,8.12449855,123.91,123.89,62.05271824]
[1743419635739,0.05319855,123.91,123.89,62.05271824]
[1743419635945,0.05319855,123.91,123.9,9.44087827]
[1743419636146,17.50957827,123.95,123.9,9.44087827]
[1743419636343,9.44087827,123.96,123.91,9.44087827]
[1743419636542,9.44087827,123.96,123.92,9.44087827]
[1743419637043,17.50887827,123.96,123.93,8.0694]
[1743419637439,17.57004222,123.96,123.93,8.12515957]
[1743419638047,9.44087827,123.95,123.93,0.05575957]
[1743419638943,39.94087827,123.94,123.86,2.1813]
[1743419639143,9.44087827,123.91,123.86,11.62217827]
[1743419639445,8.0718,123.9,123.86,19.69607827]
[1743419639846,8.0716,123.9,123.87,17.51447827]
[1743419640047,8.12869672,123.9,123.87,17.57265927]
[1743419640945,8.12869672,123.9,123.87,9.49905927]
[1743419641444,8.0723,123.89,123.87,9.49905927]
[1743419642049,8.0723,123.89,123.88,62.0]
[1743419643962,9.49797499,123.9,123.87,0.058181]
[1743419644268,9.44087827,123.88,123.81,9.44087827]
[1743419644559,9.44087827,123.86,123.81,17.51807827]
[1743419645052,8.0759,123.84,123.81,17.51807827]
[1743419645454,0.05283403,123.84,123.81,17.56796302]
[1743419646251,8.0763,123.83,123.81,0.04988475]
[1743419646449,9.4937123,123.84,123.81,0.04988475]
[1743419646654,9.44087827,123.83,123.81,0.04988475]
[1743419646959,9.44087827,123.83,123.81,62.04988475]
[1743419647158,17.51747827,123.83,123.81,62.04988475]
[1743419647359,9.44087827,123.83,123.81,62.04988475]
[1743419647863,17.51737827,123.83,123.81,62.04988475]
[1743419648257,17.51737827,123.83,123.81,0.04988475]
[1743419649059,9.44087827,123.83,123.81,0.04988475]
[1743419649561,17.51737827,123.83,123.81,0.04988475]
[1743419650265,48.0696123,123.84,123.81,0.04988475]
[1743419650961,0.05283403,123.84,123.83,17.51707827]
[1743419651359,10.2805,123.89,123.86,8.0738]
[1743419651560,19.72137827,123.89,123.86,8.0738]
[1743419652655,19.77425448,123.89,123.86,8.1246511]
[1743419653069,11.70165448,123.89,123.86,8.1246511]
[1743419653458,11.70165448,123.89,123.86,0.0508511]
[1743419653668,8.0733,123.88,123.86,0.0508511]
[1743419654469,10.33337621,123.89,123.86,0.0508511]
[1743419654670,10.33337621,123.89,123.86,8.1250511]
[1743419656664,2.26077621,123.89,123.87,8.0735]
[1743419657061,0.05287621,123.89,123.86,0.0508511]
[1743419657567,0.05287621,123.89,123.87,8.0736]
[1743419659463,0.05287621,123.89,123.86,0.0508511]
[1743419660767,8.0732,123.88,123.86,0.0508511]
[1743419661171,0.05287621,123.89,123.86,0.0508511]
[1743419661468,8.0736,123.87,123.86,0.0508511]
[1743419663070,38.5733,123.88,123.86,0.0508511]
[1743419663270,30.5,123.88,123.86,0.0508511]
[1743419664771,8.0736,123.87,123.86,0.0508511]
[1743419667771,30.5,123.88,123.86,8.1250511]
[1743419668276,38.5732,123.88,123.86,8.1250511]
[1743419668479,38.5732,123.88,123.86,0.0508511]
[1743419668677,30.5,123.88,123.86,0.0508511]
[1743419669781,8.0736,123.87,123.86,0.0508511]
[1743419672986,38.5733,123.88,123.86,0.0508511]
[1743419673186,30.5,123.88,123.86,8.1250511]
[1743419673785,8.0736,123.87,123.86,0.0508511]
[1743419675787,17.53561007,123.87,123.86,0.0508511]
[1743419678393,48.01561007,123.87,123.86,0.0508511]
[1743419683195,2.24187621,123.89,123.86,0.0508511]
[1743419683390,30.48,123.88,123.86,0.0508511]
[1743419683592,0.05287621,123.89,123.86,8.1247511]
[1743419683791,0.05287621,123.89,123.86,9.51286117]
[1743419683997,0.05287621,123.89,123.87,8.0732]
[1743419684791,8.12537621,123.89,123.87,8.0732]
[1743419684998,0.05287621,123.89,123.87,8.0732]
[1743419685399,0.05287621,123.89,123.88,8.0729]
[1743419685897,0.05287621,123.89,123.88,17.53491007]
[1743419686194,0.03156648,123.89,123.88,17.53491007]
[1743419687296,54.30252437,123.95,123.88,9.46201007]
[1743419687495,54.30252437,123.95,123.91,9.46201007]
[1743419687998,44.8405143,123.95,123.92,9.46201007]
[1743419688297,44.89433378,123.95,123.92,9.52042664]
[1743419688697,44.89433378,123.95,123.93,9.46201007]
[1743419688897,44.89433378,123.95,123.94,8.069]
[1743419690104,44.89433378,123.95,123.93,17.53131007]
[1743419690498,44.89433378,123.95,123.93,9.46201007]
[1743419690693,0.05381948,123.95,123.93,9.46201007]
[1743419690893,0.05381948,123.95,123.94,8.069]
[1743419692601,0.05381948,123.95,123.94,17.53101007]
[1743419696298,0.05381948,123.95,123.93,71.46201007]
[1743419696505,0.05381948,123.95,123.92,9.52042664]
[1743419697004,8.12241948,123.95,123.92,17.59032664]
[1743419697796,0.05381948,123.95,123.93,8.0697]
[1743419697995,0.05381948,123.95,123.93,9.46201007]
[1743419698207,0.05381948,123.95,123.92,9.52042664]
[1743419699205,0.05381948,123.95,123.92,17.59042664]
[1743419699498,0.05381948,123.95,123.92,79.59042664]
[1743419699806,9.46201007,123.93,123.92,0.05841657]
[1743419700205,9.46201007,123.91,123.88,8.0726]
[1743419700600,17.53371007,123.9,123.87,8.0733]
[1743419701203,17.59448009,123.9,123.87,8.13248461]
[1743419701401,9.52278009,123.9,123.87,8.13248461]
[1743419701802,9.46201007,123.89,123.87,0.05918461]
[1743419702107,39.90201007,123.88,123.81,11.49761007]
[1743419702405,9.46201007,123.86,123.83,8.0759]
[1743419702601,39.90201007,123.88,123.83,71.46201007]
[1743419702805,9.46201007,123.89,123.85,9.46201007]
[1743419703000,39.90201007,123.9,123.85,9.46201007]
[1743419703202,0.06043598,123.88,123.86,9.50000388]
[1743419704103,0.06043598,123.88,123.87,8.0736]
[1743419704909,0.06043598,123.88,123.86,8.11189381]
[1743419705806,0.06043598,123.88,123.87,8.0736]
[1743419706802,0.06043598,123.88,123.87,17.53561007]
[1743419707403,0.06043598,123.88,123.86,8.11189381]
[1743419707804,0.06043598,123.88,123.87,8.0736]
[1743419708908,0.06043598,123.88,123.86,17.57390388]
[1743419709709,0.06043598,123.88,123.87,8.0736]
[1743419711210,0.06043598,123.88,123.87,17.53561007]
[1743419711412,0.06043598,123.88,123.87,8.0736]
[1743419713214,0.06043598,123.88,123.87,17.53561007]
[1743419713413,0.06043598,123.88,123.87,9.46201007]
[1743419713606,0.06043598,123.88,123.86,17.57380388]
[1743419715714,9.52244605,123.88,123.86,0.03799381]
[1743419716416,8.0736,123.87,123.86,0.03799381]
[1743419716719,0.06043598,123.88,123.86,0.03799381]
[1743419717116,0.06043598,123.88,123.87,8.0736]
[1743419717417,0.06043598,123.88,123.86,0.03799381]
[1743419718714,8.0736,123.87,123.86,0.03799381]
[1743419719220,17.53561007,123.87,123.86,0.03799381]
[1743419719709,9.46201007,123.87,123.8,9.46201007]
[1743419719908,9.46201007,123.84,123.8,8.0779]
[1743419720315,8.0765,123.83,123.8,8.0779]
[1743419720917,0.05192226,123.83,123.79,17.54041007]
[1743419721215,0.05192226,123.83,123.79,9.46201007]
[1743419721415,8.12842226,123.83,123.79,9.46201007]
[1743419721621,8.12842226,123.83,123.81,8.0775]
[1743419722219,0.05192226,123.83,123.8,9.46201007]
[1743419722717,0.05192226,123.83,123.81,8.0772]
[1743419723318,8.12842226,123.83,123.8,70.0779]
[1743419724423,8.12842226,123.83,123.81,8.0774]
[1743419724619,0.05192226,123.83,123.81,8.0774]
[1743419725623,8.12822226,123.83,123.8,70.0779]
[1743419725817,8.12822226,123.83,123.8,62.0]
[1743419726123,0.05192226,123.83,123.81,8.077]
[1743419726817,0.05192226,123.83,123.82,8.0768]
[1743419727621,30.44,123.88,123.82,14.78996633]
[1743419727818,38.5132,123.88,123.82,14.78996633]
[1743419728019,47.31536633,123.9,123.82,14.78996633]
[1743419728220,47.31536633,123.9,123.84,8.0752]
[1743419728723,8.074,123.87,123.85,0.05192226]
[1743419728923,0.05879006,123.88,123.85,0.05192226]
[1743419729419,8.0742,123.87,123.85,0.05192226]
[1743419730320,8.0742,123.86,123.85,0.05192226]
[1743419734724,8.0763,123.83,123.81,8.0772]
[1743419734920,14.78996633,123.86,123.8,62.0]
[1743419735125,30.44,123.85,123.8,62.0]
[1743419735325,8.0775,123.81,123.8,62.0]
[1743419737927,8.0785,123.8,123.77,38.5198]
[1743419738128,45.2833042,123.82,123.74,396.87784586]
[1743419738329,45.22996633,123.82,123.74,396.87784586]
[1743419738523,0.05434602,123.79,123.76,14.78996633]
[1743419738729,0.05434602,123.79,123.76,45.22996633]
[1743419739228,0.05434602,123.79,123.78,8.0791]
[1743419741033,14.78996633,123.86,123.82,8.0766]
[1743419741237,14.78996633,123.86,123.79,30.44]
[1743419741531,8.0756,123.84,123.81,8.0772]
[1743419742132,8.12694377,123.84,123.81,8.13154602]
[1743419743731,9.4650727,123.83,123.81,0.05434602]
[1743419743932,9.4650727,123.82,123.81,0.05434602]
[1743419744433,9.4650727,123.83,123.81,0.05434602]
[1743419744934,9.4650727,123.82,123.76,39.9050727]
[1743419745128,30.44,123.83,123.76,39.9050727]
[1743419745129,9.4650727,123.81,123.76,9.4650727]
[1743419745329,9.4650727,123.8,123.75,9.4650727]
[1743419745530,9.4650727,123.79,123.74,41.9441727]
[1743419745837,8.0803,123.77,123.74,9.4650727]
[1743419746230,0.05595697,123.78,123.75,9.4650727]
[1743419746932,0.05595697,123.78,123.75,71.4650727]
[1743419747125,8.13535697,123.78,123.75,71.4650727]
[1743419747336,0.05595697,123.78,123.75,71.4650727]
[1743419747533,0.05595697,123.78,123.76,9.4650727]
[1743419747734,8.13545697,123.78,123.75,62.0]
[1743419749538,8.0801,123.77,123.75,62.0]
[1743419751831,8.13575697,123.78,123.75,62.0]
[1743419752031,0.05595697,123.78,123.75,62.0]
[1743419752233,8.0807,123.77,123.75,62.0]
[1743419752537,0.05595697,123.78,123.73,30.44]
[1743419752734,8.0818,123.75,123.73,30.44]
[1743419752932,14.79847153,123.8,123.73,30.44]
[1743419753136,0.0527972,123.75,123.73,30.44]
[1743419753329,14.79847153,123.8,123.73,30.44]
[1743419753330,8.0805,123.77,123.73,30.44]
[1743419753530,8.0805,123.77,123.74,30.44]
[1743419753738,0.05206928,123.76,123.74,45.23847153]
[1743419754037,2.1501,123.82,123.74,45.23847153]
[1743419754435,0.05206911,123.79,123.76,14.79847153]
[1743419754631,0.05206911,123.79,123.77,30.44]
[1743419755039,0.05206911,123.79,123.77,32.5534]
[1743419755235,0.05206911,123.79,123.75,34.641]
[1743419755540,0.05206911,123.79,123.76,62.0]
[1743419755838,0.05206911,123.79,123.75,30.44]
[1743419756038,8.082,123.75,123.73,32.4357]
[1743419756439,8.13967557,123.75,123.73,32.4357]
[1743419757544,0.05767557,123.75,123.73,32.4357]
[1743419758034,0.05767557,123.75,123.73,40.5181]
[1743419758636,0.05767557,123.75,123.74,62.0]
[1743419758841,437.78278583,123.9,123.74,76.79847153]
[1743419759141,36.5265,123.86,123.77,14.79847153]
[1743419759436,36.5265,123.86,123.78,30.44]
[1743419759942,36.5265,123.86,123.8,0.05423655]
[1743419760139,0.05639503,123.82,123.8,0.05423655]
[1743419760543,8.13359503,123.82,123.8,0.05423655]
[1743419761039,0.05639503,123.82,123.8,0.05423655]
[1743419761541,8.13329503,123.82,123.8,0.05423655]
[1743419762740,0.05639503,123.82,123.81,30.42]
[1743419763130,0.05639503,123.82,123.81,38.4975]
[1743419764246,0.05639503,123.82,123.81,30.42]
[1743419764446,0.05639503,123.82,123.8,0.05423655]
[1743419765841,0.00204901,123.82,123.81,84.87597153]
[1743419766041,21.24947153,123.9,123.81,76.79847153]
[1743419766246,14.79847153,123.92,123.84,14.79847153]
[1743419766442,14.79847153,123.92,123.85,30.42]
[1743419766844,6.451,123.93,123.85,30.42]
[1743419767345,0.05150462,123.9,123.88,8.13435653]
[1743419767741,8.12320462,123.9,123.88,8.13435653]
[1743419768049,0.05150462,123.9,123.89,8.0723]
[1743419769348,0.05150462,123.9,123.89,70.0723]
[1743419770050,0.05150462,123.9,123.89,62.0]
[1743419772749,0.05150462,123.9,123.89,70.0723]
[1743419773550,21.15727153,123.96,123.92,8.0701]
[1743419773947,14.79847153,123.98,123.91,30.4]
[1743419774348,14.79847153,123.98,123.92,8.0702]
[1743419774552,8.0688,123.95,123.92,8.0702]
[1743419774751,8.0688,123.95,123.94,0.05760644]
[1743419776557,8.1227765,123.96,123.94,0.05760644]
[1743419776748,0.0546765,123.96,123.94,8.12630644]
[1743419777252,0.0546765,123.96,123.94,0.05760644]
[1743419777555,0.0546765,123.96,123.94,30.45760644]
[1743419777956,0.0546765,123.96,123.94,38.52630644]
[1743419778161,0.0546765,123.96,123.94,45.25607797]
[1743419778555,0.0546765,123.96,123.95,8.0684]
[1743419781461,14.79847153,124.02,123.99,8.0654]
[1743419781462,8.064,124.02,123.99,8.0654]
[1743419781761,14.79847153,124.08,124.0,14.79847153]
[1743419781958,14.79847153,124.08,124.02,8.0634]
[1743419782156,14.79847153,124.08,124.01,30.38]
[1743419782655,8.0626,124.04,124.03,0.0540531]
[1743419785773,0.05403369,124.06,124.03,366.1140531]
[1743419786062,21.08117153,124.15,124.09,8.0589]
[1743419786267,6.2827,124.15,124.08,45.17847153]
[1743419786961,14.3383,124.15,124.1,8.0583]
[1743419787162,0.05261474,124.13,124.1,8.11136132]
[1743419787360,0.05261474,124.13,124.11,30.38]
[1743419787567,0.05261474,124.13,124.12,8.0573]
[1743419787766,0.05261474,124.13,124.11,30.38]
[1743419788866,0.05261474,124.13,124.12,62.0]
[1743419789868,0.05261474,124.13,124.1,0.05306132]
[1743419790664,0.05261474,124.13,124.1,8.11126132]
[1743419791067,8.10931474,124.13,124.1,0.05306132]
[1743419792073,0.05261474,124.13,124.1,0.05306132]
[1743419793170,8.0573,124.12,124.1,0.05306132]
[1743419793776,8.10961474,124.13,124.1,8.11166132]
[1743419794170,8.0574,124.12,124.1,0.05306132]
[1743419795678,8.058,124.11,124.1,0.05306132]
[1743419796275,8.0574,124.12,124.1,0.05306132]
[1743419796679,0.05261474,124.13,124.1,0.05306132]
[1743419797477,8.0576,124.12,124.1,0.05306132]
[1743419798175,8.0576,124.12,124.1,8.11166132]
[1743419798370,8.10971474,124.13,124.1,8.11166132]
[1743419799675,8.0576,124.12,124.1,0.05306132]
[1743419799871,0.05261474,124.13,124.1,0.05306132]
[1743419800282,8.058,124.11,124.1,0.05306132]
[1743419801980,8.0576,124.12,124.1,0.05306132]
[1743419802377,8.0576,124.12,124.1,8.11166132]
[1743419802577,8.0576,124.12,124.1,0.05306132]
[1743419804275,8.0576,124.12,124.1,8.11166132]
[1743419805486,8.0576,124.12,124.1,0.05306132]
[1743419806288,8.058,124.11,124.1,0.05306132]
[1743419806489,0.05261474,124.13,124.1,0.05306132]
[1743419807892,8.0576,124.12,124.1,0.05306132]
[1743419809289,8.058,124.11,124.1,0.05306132]
[1743419809593,0.05261474,124.13,124.1,0.05306132]
[1743419809994,8.0579,124.12,124.1,0.05306132]
[1743419810692,8.10961474,124.13,124.1,8.11156132]
[1743419810896,0.05261474,124.13,124.1,0.05306132]
[1743419811292,8.10951474,124.13,124.11,8.0576]
[1743419811697,8.10951474,124.13,124.1,0.05306132]
[1743419811897,8.10951474,124.13,124.1,8.11126132]
[1743419812297,8.0574,124.12,124.1,8.11126132]
[1743419817094,8.10961474,124.13,124.1,8.11126132]
[1743419817296,8.10961474,124.13,124.1,0.05306132]
[1743419817499,0.05261474,124.13,124.1,0.05306132]
[1743419817695,0.05261474,124.13,124.1,39.81126351]
[1743419818091,0.05261474,124.13,124.12,9.41820219]
[1743419818601,0.05261474,124.13,124.12,17.47550219]
[1743419819802,0.05261474,124.13,124.12,8.0573]
[1743419821100,0.05261474,124.13,124.12,22.76861443]
[1743419827705,0.05261474,124.13,124.12,8.0573]
[1743419828205,0.05261474,124.13,124.12,38.3773]
[1743419833108,1.474e-05,124.13,124.12,53.08861443]
[1743419833509,4.1985,124.19,124.12,45.03131443]
[1743419833707,2.1365,124.22,124.14,14.71131443]
[1743419833913,2.1365,124.22,124.16,14.71131443]
[1743419834111,3.9872,124.23,124.21,8.0512]
[1743419834310,3.9872,124.23,124.17,30.32]
[1743419834520,3.9872,124.23,124.16,14.71131443]
[1743419834521,3.9872,124.23,124.18,30.32]
[1743419834709,3.9872,124.23,124.22,8.0508]
[1743419834913,0.05950181,124.22,124.21,30.32]
[1743419835105,0.05950181,124.22,124.21,38.3715]
[1743419836715,0.05950181,124.22,124.21,100.3715]
[1743419839919,4.208,124.27,124.24,8.049]
[1743419840119,4.208,124.27,124.24,47.75043411]
[1743419840316,12.256,124.27,124.24,47.75043411]
[1743419841119,13.66907754,124.27,124.24,30.35668459]
[1743419841320,9.40143411,124.25,124.24,0.05668459]
[1743419841622,8.0508,124.22,124.17,678.18]
[1743419841825,9.40143411,124.23,124.19,9.40143411]
[1743419842022,9.40143411,124.24,124.19,9.40143411]
[1743419842223,8.0505,124.23,124.2,8.0518]
[1743419842622,0.05928315,124.23,124.2,0.05948375]
[1743419842822,0.05928315,124.23,124.2,8.11128375]
[1743419843226,8.10978315,124.23,124.2,0.05948375]
[1743419843819,0.05928315,124.23,124.21,8.0511]
[1743419844126,14.69434034,124.22,124.2,0.05948375]
[1743419844326,16.83524034,124.22,124.2,0.05948375]
[1743419844522,8.0515,124.21,124.2,0.05948375]
[1743419845226,8.0522,124.2,124.18,62.0]
[1743419845428,16.83524034,124.22,124.18,62.0]
[1743419845620,8.0526,124.2,124.18,62.0]
[1743419845823,8.0526,124.2,124.12,5.9862]
[1743419845824,44.99434034,124.2,124.12,14.69434034]
[1743419846129,14.69434034,124.18,124.11,320.06]
[1743419846327,0.0556904,124.17,124.15,0.05152181]
[1743419846728,8.0547,124.16,124.15,0.05152181]
[1743419847226,8.0569,124.13,124.11,289.76]
[1743419847424,14.69434034,124.16,124.11,289.76]
[1743419847825,8.0558,124.15,124.12,8.057]
[1743419848031,30.3,124.17,124.11,289.76]
[1743419848328,0.05219597,124.15,124.12,0.05863894]
[1743419848529,0.05219597,124.15,124.13,8.0567]
[1743419848729,0.05219597,124.15,124.13,62.0]
[1743419849121,0.05219597,124.15,124.14,8.056]
[1743419852136,0.05219597,124.15,124.13,70.0563]
[1743419852533,0.05219597,124.15,124.13,62.0]
[1743419852735,8.056,124.14,124.12,0.05863894]
[1743419853235,8.10789597,124.15,124.12,8.11593894]
[1743419853633,0.05219597,124.15,124.12,8.11593894]